bitfinex/quotes_ETHUSD_20241207
["timestamp","ask_amount","ask_price","bid_price","bid_amount"]
[1733550141279,0.05668401,3990.6,3990.1,0.55]
[1733550141704,1.81745122,3991.0,3990.1,0.55]
[1733550141876,0.05665362,3990.5,3990.1,0.55]
[1733550142075,1.04335122,3990.9,3990.1,0.55]
[1733550142445,1.04335122,3990.7,3989.9,0.55]
[1733550142706,2.15380492,3990.6,3989.9,0.55]
[1733550142873,0.86163684,3990.5,3989.9,0.55]
[1733550143070,0.05680711,3990.5,3989.9,0.55]
[1733550143270,0.7741,3990.4,3989.3,2.52066]
[1733550143574,0.05469633,3990.3,3989.4,1.75464]
[1733550144807,0.05469633,3990.3,3989.5,0.55]
[1733550145021,0.05469633,3990.3,3989.4,0.55]
[1733550147107,1.7543,3990.2,3989.4,0.55]
[1733550147301,0.28527267,3990.2,3989.4,0.55]
[1733550147625,0.05451209,3990.1,3989.4,0.55]
[1733550148930,1.29104594,3990.3,3989.4,0.55]
[1733550149225,3.10849716,3990.4,3989.4,0.55]
[1733550149426,0.05423208,3990.2,3989.5,0.01265047]
[1733550149627,0.05426246,3990.3,3989.6,0.55]
[1733550150633,0.05426246,3990.3,3989.4,0.55]
[1733550150800,0.86032754,3990.2,3989.4,0.55]
[1733550151121,0.8603077,3990.1,3989.4,0.55]
[1733550151309,0.05422839,3990.1,3989.4,0.55]
[1733550151632,0.70240418,3990.1,3989.4,0.55]
[1733550152702,0.7764,3990.0,3989.4,0.55]
[1733550152902,0.7764,3990.0,3989.1,0.55]
[1733550153097,0.05418431,3989.9,3989.1,0.55]
[1733550156193,0.05418431,3989.9,3989.1,2.30477]
[1733550156436,0.05418431,3989.9,3989.3,0.55]
[1733550156936,0.05418431,3989.9,3989.2,0.55]
[1733550157697,0.05418431,3989.9,3989.3,0.83445293]
[1733550157906,0.05418431,3989.9,3989.6,0.55]
[1733550158111,0.8227,3990.4,3989.6,0.55]
[1733550158645,0.05416233,3990.3,3989.8,0.55]
[1733550159729,4.66804563,3990.8,3989.8,0.55]
[1733550160030,0.74653869,3990.7,3989.8,0.55]
[1733550160240,0.80083592,3990.7,3989.8,0.55]
[1733550160806,0.05429723,3990.7,3990.1,0.55]
[1733550161006,0.05429723,3990.7,3990.3,0.55]
[1733550161399,3.84534563,3990.8,3990.3,0.55]
[1733550161647,0.05432025,3990.6,3990.3,0.55]
[1733550161821,0.05435063,3990.7,3990.3,0.55]
[1733550162140,3.84534563,3990.8,3990.3,0.55]
[1733550162343,0.05435063,3990.7,3990.3,0.55]
[1733550162546,3.84534563,3990.8,3990.3,0.55]
[1733550162751,0.03132471,3990.7,3990.3,0.55]
[1733550162904,0.8227,3990.6,3989.6,0.55]
[1733550163101,0.8227,3990.6,3989.6,1.3718]
[1733550163305,0.05458357,3990.5,3989.6,3.12635]
[1733550163774,0.05458357,3990.5,3989.6,1.3718]
[1733550163955,0.05458357,3990.5,3989.8,0.55]
[1733550163956,0.3023828,3990.5,3989.8,0.55]
[1733550164537,0.3023828,3990.5,3989.7,1.75451]
[1733550164538,0.3023828,3990.5,3989.7,0.55]
[1733550165952,0.05458357,3990.5,3990.3,0.55]
[1733550166319,0.7876,3991.2,3990.3,0.55]
[1733550166913,0.7876,3991.2,3990.4,0.55]
[1733550168561,0.86091959,3991.1,3990.4,0.55]
[1733550168860,0.7876,3991.2,3990.4,0.55]
[1733550169260,0.86095003,3991.1,3990.4,0.55]
[1733550169459,2.07834217,3991.2,3990.4,0.55]
[1733550169632,0.86120623,3991.1,3990.4,0.55]
[1733550169957,0.05461232,3991.1,3990.4,0.55]
[1733550170159,1.34535449,3991.1,3990.4,0.55]
[1733550170321,0.05461232,3991.1,3990.4,0.55]
[1733550170525,0.8614601,3991.0,3990.2,0.55]
[1733550170726,1.83095122,3990.8,3989.8,0.8141]
[1733550170963,3.25158625,3990.7,3989.8,0.8141]
[1733550171128,0.86139355,3990.6,3989.8,0.8141]
[1733550171326,0.05469039,3990.5,3989.8,0.8141]
[1733550171549,0.8617064,3990.4,3989.8,0.8141]
[1733550171749,0.05462962,3990.3,3989.8,0.8141]
[1733550172028,1.47454305,3990.6,3989.9,0.55]
[1733550172262,0.05459923,3990.2,3989.9,0.55]
[1733550172463,1.04335122,3990.6,3989.9,0.55]
[1733550172664,0.05456884,3990.1,3989.9,0.55]
[1733550172865,1.04335122,3990.6,3989.9,0.55]
[1733550173161,0.86187612,3990.5,3989.9,0.55]
[1733550173373,1.04335122,3990.6,3989.9,0.55]
[1733550173568,0.05461994,3990.4,3989.9,0.55]
[1733550173735,0.05458955,3990.3,3989.9,0.55]
[1733550174066,1.29304954,3990.5,3989.9,0.55]
[1733550174269,0.05455916,3990.2,3989.9,0.55]
[1733550174567,0.05452877,3990.1,3989.9,0.55]
[1733550174767,1.29320583,3990.4,3989.9,2.30442]
[1733550175083,0.05456952,3990.3,3989.9,2.30442]
[1733550175442,1.04335122,3990.5,3989.9,2.30442]
[1733550175665,0.86219453,3990.4,3989.9,2.30442]
[1733550175869,1.04335122,3990.5,3989.9,2.30442]
[1733550176045,0.86231894,3990.4,3989.9,2.30442]
[1733550176368,1.04335122,3990.5,3989.9,2.30442]
[1733550176566,2.15603247,3990.4,3989.9,2.30442]
[1733550176735,0.86232381,3990.3,3989.9,2.30442]
[1733550177074,0.05453913,3990.2,3989.9,0.55]
[1733550177258,0.86503913,3990.2,3989.4,2.56584]
[1733550177574,2.2104224,3990.1,3989.5,0.55]
[1733550177737,3.19935165,3990.0,3989.5,0.55]
[1733550178075,3.25371284,3989.9,3989.5,0.55]
[1733550178286,2.15600043,3989.8,3989.2,0.55]
[1733550178446,2.15648851,3989.7,3989.2,2.30473]
[1733550178654,0.05426369,3989.7,3989.2,2.30473]
[1733550178830,0.05426369,3989.7,3989.1,0.8112]
[1733550179035,0.8627008,3989.6,3989.1,0.8112]
[1733550179279,1.09761491,3989.7,3989.1,0.8112]
[1733550179434,0.0540794,3989.5,3989.1,0.8112]
[1733550179637,1.09746102,3989.6,3989.1,0.8112]
[1733550179835,0.054049,3989.4,3989.1,0.8112]
[1733550180064,0.05394257,3989.5,3989.1,0.8112]
[1733550180370,1.04335122,3989.7,3989.2,0.55]
[1733550180575,1.04335122,3989.8,3989.2,0.55]
[1733550180731,2.21115067,3989.7,3989.2,0.55]
[1733550180931,0.8105,3989.6,3988.5,0.8112]
[1733550181136,2.15706164,3989.5,3988.8,1.75489]
[1733550181370,0.05394257,3989.5,3988.8,1.75489]
[1733550182146,0.86270018,3989.4,3988.8,1.75489]
[1733550182355,0.05388177,3989.3,3988.9,0.55]
[1733550182671,1.85385122,3989.6,3988.9,0.55]
[1733550182849,0.05385136,3989.2,3988.7,0.55]
[1733550183032,1.04335122,3989.4,3988.7,0.55]
[1733550183236,0.0537041,3989.1,3988.7,0.55]
[1733550183456,1.04335122,3989.3,3988.7,0.55]
[1733550183776,3.19961482,3989.2,3988.6,0.55]
[1733550183981,2.2099677,3989.1,3988.6,0.55]
[1733550184278,0.0537041,3989.1,3988.6,2.30499]
[1733550184783,1.29361945,3989.3,3988.6,2.63324409]
[1733550185077,1.04335122,3989.4,3988.6,2.63324409]
[1733550185280,0.05361432,3989.2,3988.6,2.63324409]
[1733550185450,0.8622667,3989.1,3988.6,0.55]
[1733550185648,0.05355052,3989.1,3988.6,0.55]
[1733550186353,1.04335122,3989.3,3988.6,0.55]
[1733550186579,0.91575533,3989.2,3988.6,0.55]
[1733550186762,0.05358092,3989.2,3988.6,0.55]
[1733550187080,2.37532233,3989.6,3988.9,0.55]
[1733550187081,1.04335122,3989.5,3988.9,0.55]
[1733550187284,0.05349042,3989.1,3988.9,0.55]
[1733550187890,0.86389323,3989.0,3988.4,0.1663509]
[1733550188093,0.86389323,3989.0,3988.5,0.55]
[1733550188246,0.86389323,3989.0,3988.5,2.30504]
[1733550188751,0.86389323,3989.0,3988.7,0.55]
[1733550189559,0.86389323,3989.0,3988.7,2.30494]
[1733550189877,0.05339323,3989.0,3988.7,2.30494]
[1733550190598,0.05339323,3989.0,3988.9,0.55]
[1733550190796,0.05339323,3989.0,3988.9,2.30486]
[1733550191099,0.05339323,3989.0,3988.9,3.346546]
[1733550192283,0.05339323,3989.0,3988.9,3.11606]
[1733550198006,0.05339323,3989.0,3988.9,3.12872043]
[1733550198213,0.05349042,3989.1,3988.9,3.12872043]
[1733550198424,4.2e-07,3989.1,3989.0,3.12942]
[1733550198578,1.56482233,3990.4,3989.9,0.55]
[1733550198579,1.29181478,3990.3,3989.9,0.55]
[1733550198906,1.04335122,3990.4,3989.9,0.55]
[1733550198907,0.90957645,3990.2,3989.9,0.55]
[1733550199076,0.0484221,3990.2,3989.9,0.55]
[1733550199479,1.04335122,3990.4,3989.9,0.55]
[1733550199674,0.04839171,3990.1,3989.9,0.55]
[1733550199875,1.04335122,3990.4,3990.0,0.55]
[1733550200106,0.86142559,3990.3,3990.0,0.55]
[1733550200407,1.84945122,3990.5,3990.0,0.55]
[1733550200408,1.29219048,3990.4,3990.0,0.55]
[1733550200612,0.86136602,3990.3,3990.1,0.55]
[1733550200914,1.29201896,3990.4,3990.1,0.55]
[1733550201076,0.04857234,3990.2,3990.1,0.55]
[1733550201270,1.29201854,3990.4,3990.1,0.55]
[1733550201510,0.04862907,3990.2,3990.1,0.55]
[1733550201724,1.29200506,3990.4,3990.1,0.55]
[1733550201876,0.04862907,3990.2,3990.1,0.55]
[1733550202374,1.84945122,3990.5,3990.1,0.55]
[1733550202574,2.20210064,3990.4,3990.1,0.55]
[1733550202775,0.86136432,3990.3,3990.1,0.55]
[1733550202975,0.04862907,3990.2,3990.1,0.55]
[1733550203214,1.29197734,3990.4,3990.1,0.55]
[1733550203429,0.04862907,3990.2,3990.1,0.55]
[1733550203603,0.8061,3990.5,3990.1,0.55]
[1733550203819,0.04868984,3990.4,3990.1,0.55]
[1733550204191,0.04868984,3990.4,3990.3,2.30425]
[1733550204507,1.84945122,3991.2,3990.6,1.75408]
[1733550204718,0.8061,3991.2,3990.7,0.55]
[1733550205216,0.8061,3991.2,3990.5,0.55]
[1733550205421,0.8061,3991.2,3990.8,1.754]
[1733550205624,0.8061,3991.2,3990.9,1.75397]
[1733550207213,3.84534563,3991.4,3990.6,0.8246]
[1733550207585,0.7329941,3991.5,3991.2,1.75385]
[1733550207586,0.04760059,3991.3,3991.2,1.75385]
[1733550207782,0.7329941,3991.5,3991.2,0.8246]
[1733550207985,0.057566,3991.9,3991.8,1.75359]
[1733550208295,0.10560575,3991.9,3991.8,1.75359]
[1733550208492,0.10560575,3991.9,3991.6,1.75366]
[1733550208705,0.10560575,3991.9,3991.4,1.75377]
[1733550209016,0.10560575,3991.9,3991.3,1.75377]
[1733550209203,0.10560575,3991.9,3991.2,0.8246]
[1733550209722,0.10560575,3991.9,3991.5,1.7537]
[1733550210094,0.10560575,3991.9,3991.6,1.75367]
[1733550210305,0.10560575,3991.9,3991.7,1.75362]
[1733550211187,0.10560575,3991.9,3991.5,1.75371]
[1733550215032,0.10560575,3991.9,3991.2,0.8246]
[1733550215336,0.10560575,3991.9,3991.3,1.7538]
[1733550215493,0.10560575,3991.9,3991.2,0.8246]
[1733550215693,0.7575,3991.8,3991.1,1.75389]
[1733550216132,0.04806909,3991.7,3991.1,1.75389]
[1733550217792,0.04806909,3991.7,3990.8,0.797]
[1733550217996,0.7575,3991.8,3990.9,1.75398]
[1733550218226,0.04818919,3991.7,3990.9,1.75398]
[1733550219623,0.04818919,3991.7,3990.8,0.797]
[1733550219624,0.07950744,3991.7,3990.8,0.797]
[1733550219819,0.04818919,3991.7,3990.8,0.797]
[1733550220215,0.24618919,3991.7,3990.8,0.797]
[1733550222834,0.31280169,3991.6,3990.3,0.797]
[1733550223159,0.31280169,3991.6,3990.5,1.75416]
[1733550223160,0.7575,3991.5,3990.5,1.75416]
[1733550223362,0.03131927,3991.4,3990.3,0.797]
[1733550223530,0.7575,3991.3,3990.3,0.797]
[1733550223730,0.25593585,3991.2,3990.3,0.797]
[1733550224171,0.04791024,3991.1,3990.3,0.797]
[1733550224338,0.04791024,3991.1,3990.2,1.75429]
[1733550224339,0.7575,3991.0,3990.2,1.75429]
[1733550224667,0.0791731,3990.9,3990.2,1.75429]
[1733550225036,0.04784949,3990.9,3990.2,1.75429]
[1733550225456,0.04784949,3990.9,3990.0,0.797]
[1733550225654,0.04784949,3990.9,3989.9,1.7544]
[1733550225655,0.7575,3990.8,3989.9,1.7544]
[1733550226175,0.04767416,3990.7,3989.9,1.7544]
[1733550226640,0.7575,3990.6,3989.9,1.7544]
[1733550226844,0.7575,3990.6,3989.6,2.30452]
[1733550227039,0.04745993,3990.5,3989.6,2.30452]
[1733550228049,0.04745993,3990.5,3989.7,1.7545]
[1733550228245,0.07878586,3990.5,3989.5,2.5516]
[1733550228783,0.07878586,3990.5,3989.7,1.75451]
[1733550228784,0.04745993,3990.5,3989.7,1.75451]
[1733550229152,0.7575,3990.6,3989.8,1.75447]
[1733550229687,0.0786069,3990.5,3989.8,1.75447]
[1733550229988,0.04727972,3990.5,3989.8,1.75447]
[1733550230785,0.0786069,3990.5,3989.8,1.75447]
[1733550230953,0.0786069,3990.5,3989.4,0.55]
[1733550231157,0.04727972,3990.5,3989.3,0.797]
[1733550231425,0.7575,3990.4,3989.4,1.75464]
[1733550231565,0.251162,3990.3,3989.5,1.75459]
[1733550231791,0.0472056,3990.3,3989.5,1.75459]
[1733550232170,0.07853512,3990.3,3989.3,0.797]
[1733550232443,0.7591,3990.1,3989.0,1.75482]
[1733550232872,0.7591,3989.9,3989.0,1.75482]
[1733550233243,0.04698355,3989.8,3989.0,1.75482]
[1733550234484,0.04698355,3989.8,3989.1,1.75476]
[1733550235848,0.04698355,3989.8,3989.2,1.75471]
[1733550239854,0.04698355,3989.8,3989.6,1.75455]
[1733550240666,0.04646246,3989.7,3989.6,1.75455]
[1733550241095,0.7591,3990.1,3989.4,2.54434]
[1733550241559,0.04655364,3990.0,3989.4,2.54434]
[1733550241765,0.04655364,3990.0,3989.5,1.7546]
[1733550245004,1.08491584,3989.8,3988.8,0.55]
[1733550245204,1.08491584,3989.8,3989.0,1.75479]
[1733550245205,0.8073,3989.6,3989.0,1.75479]
[1733550245568,0.04645176,3989.5,3989.0,1.75479]
[1733550249895,0.04645176,3989.5,3989.1,1.75477]
[1733550251585,0.04645176,3989.5,3988.6,2.30499]
[1733550251896,0.8264,3989.4,3988.5,0.7906]
[1733550252125,0.8264,3989.2,3988.4,0.1663509]
[1733550252506,0.04615655,3989.1,3988.4,0.1663509]
[1733550255108,0.8264,3989.0,3988.4,0.1663509]
[1733550255430,0.87242595,3989.0,3988.4,0.1663509]
[1733550258551,0.03133853,3988.9,3988.4,0.1663509]
[1733550258753,0.04565824,3988.9,3988.4,0.1663509]
[1733550265454,0.04565824,3988.9,3988.4,0.9238509]
[1733550265853,0.04565824,3988.9,3988.5,1.75504]
[1733550266835,1.08541381,3988.8,3988.4,0.1663509]
[1733550267060,0.8264,3989.0,3988.4,0.1663509]
[1733550267061,0.24408827,3988.7,3988.4,0.1663509]
[1733550267234,0.04520721,3988.7,3988.4,0.1663509]
[1733550267427,0.8264,3989.0,3988.4,0.1663509]
[1733550267964,1.45434725,3989.1,3988.4,0.1663509]
[1733550267965,1.08541381,3988.8,3988.4,0.1663509]
[1733550268161,0.8264,3988.7,3988.4,0.1663509]
[1733550268327,0.87159384,3988.7,3988.4,0.1663509]
[1733550268526,2.59140173,3988.7,3987.8,1.75531]
[1733550269019,1.30057436,3988.7,3987.9,1.75529]
[1733550269219,2.59122429,3988.7,3987.9,1.75529]
[1733550269423,0.86067562,3988.6,3987.9,1.75529]
[1733550269633,0.86071459,3988.5,3987.9,1.75529]
[1733550269838,0.04501609,3988.5,3987.9,1.75529]
[1733550270059,0.8264,3988.4,3987.9,1.75529]
[1733550270559,0.04495525,3988.3,3987.9,1.75529]
[1733550271936,0.04495525,3988.3,3987.5,0.7575]
[1733550272259,0.04495525,3988.3,3988.0,1.75525]
[1733550272427,0.04495525,3988.3,3987.5,1.11734038]
[1733550272629,0.04495525,3988.3,3988.0,1.75523]
[1733550277072,0.04495525,3988.3,3987.5,1.11734038]
[1733550277370,0.04495525,3988.3,3987.8,1.75535]
[1733550278740,0.04495525,3988.3,3987.5,1.11734038]
[1733550279159,0.04495525,3988.3,3987.9,1.7553]
[1733550279363,0.04495525,3988.3,3987.8,1.75531]
[1733550279576,0.04495525,3988.3,3987.5,1.11734038]
[1733550279577,0.04495525,3988.3,3987.9,1.7553]
[1733550279938,0.04495525,3988.3,3988.0,1.75525]
[1733550282080,0.04495525,3988.3,3988.2,2.54387]
[1733550282377,1.83157017,3989.0,3988.6,1.75499]
[1733550282674,0.7896,3989.0,3988.7,1.75493]
[1733550283178,0.7896,3989.0,3988.2,2.54387]
[1733550283179,1.83157017,3989.3,3988.2,0.7887]
[1733550283372,0.7896,3989.3,3988.9,1.75486]
[1733550283578,1.12905254,3989.3,3988.9,1.75486]
[1733550285748,0.03593642,3989.2,3988.9,1.75486]
[1733550286338,0.03593642,3989.2,3988.8,0.7887]
[1733550286649,0.03593642,3989.2,3989.1,1.75478]
[1733550287675,0.03593642,3989.2,3988.9,1.75485]
[1733550287977,0.03593642,3989.2,3988.7,1.75495]
[1733550288155,0.82553642,3989.2,3988.7,1.75495]
[1733550288538,0.82553642,3989.2,3988.8,1.7549]
[1733550289084,0.82553642,3989.2,3987.7,2.80221031]
[1733550289085,0.86319342,3989.1,3988.4,1.75507]
[1733550289288,0.86319342,3989.1,3987.9,1.75528]
[1733550289289,0.89451992,3989.0,3988.2,1.75516]
[1733550289581,2.94754269,3988.9,3988.2,1.75516]
[1733550289780,0.8258163,3988.9,3988.2,1.75516]
[1733550290075,0.8631881,3988.8,3988.2,1.75516]
[1733550290284,1.86778647,3988.9,3988.2,1.75516]
[1733550290285,1.13628556,3988.7,3988.2,1.75516]
[1733550290452,0.30925294,3988.7,3987.8,0.7887]
[1733550290653,2.18980662,3988.6,3987.9,1.75529]
[1733550290870,1.35122311,3988.7,3988.0,1.75525]
[1733550291043,0.03597428,3988.5,3988.0,1.75525]
[1733550291245,0.7896,3988.3,3987.1,0.7887]
[1733550291446,0.7896,3988.3,3987.7,1.75539]
[1733550291699,0.89911028,3988.2,3987.8,1.75535]
[1733550292040,0.035756,3988.2,3987.8,1.75535]
[1733550292334,0.7896,3988.3,3987.8,1.75534]
[1733550292535,0.03564199,3988.1,3987.8,1.75534]
[1733550292837,0.7896,3988.3,3987.8,1.75534]
[1733550293007,0.03561157,3988.0,3987.8,1.75534]
[1733550293209,1.39290243,3988.4,3988.1,1.75521]
[1733550293531,0.35093226,3988.4,3988.1,1.75521]
[1733550293829,0.86347908,3988.3,3988.1,1.75521]
[1733550294138,0.35093226,3988.4,3988.1,1.75521]
[1733550294337,0.35093226,3988.4,3987.8,0.7726]
[1733550294338,0.22262024,3988.3,3987.5,3.61348381]
[1733550294493,1.39290243,3988.4,3987.8,1.75533]
[1733550294699,2.15884863,3988.3,3987.8,1.75533]
[1733550294919,1.39290243,3988.4,3987.8,1.75533]
[1733550295128,3.2008316,3988.3,3987.8,1.75533]
[1733550295348,2.15886143,3988.2,3987.8,1.75533]
[1733550295526,0.86354457,3988.1,3987.8,1.75533]
[1733550295734,0.51147191,3988.2,3987.8,1.75533]
[1733550295929,0.86360374,3988.1,3987.8,1.75533]
[1733550296255,1.55344208,3988.2,3987.8,1.75533]
[1733550296421,0.8636354,3988.1,3987.8,1.75533]
[1733550296750,0.03552163,3988.1,3987.8,1.75533]
[1733550297156,0.86375435,3988.0,3987.8,1.75533]
[1733550297323,0.03549121,3988.0,3987.8,1.75533]
[1733550297525,1.55344208,3988.2,3987.8,1.75533]
[1733550297848,0.03546078,3987.9,3987.8,1.75533]
[1733550298055,1.04197017,3988.2,3987.8,1.75533]
[1733550298256,0.03546078,3987.9,3987.8,1.75533]
[1733550298433,0.03546078,3987.9,3987.5,0.7726]
[1733550298824,0.03546078,3987.9,3987.7,1.75538]
[1733550300157,0.03546078,3987.9,3987.8,1.75535]
[1733550302766,0.89929867,3987.9,3987.8,1.75535]
[1733550302961,0.03546078,3987.9,3987.8,1.75535]
[1733550303824,0.06977305,3987.9,3987.8,1.75535]
[1733550304069,0.06977305,3987.9,3987.5,0.7726]
[1733550304256,0.06977305,3987.9,3987.7,1.75539]
[1733550304660,0.06977305,3987.9,3987.8,1.75535]
[1733550306263,0.06977305,3987.9,3987.6,1.75542]
[1733550310237,0.06977305,3987.9,3987.7,1.75538]
[1733550311688,0.06977305,3987.9,3986.9,0.7759]
[1733550311689,2.16027877,3987.8,3986.9,0.7759]
[1733550311848,0.89545758,3987.7,3987.2,1.75561]
[1733550312180,0.03407418,3987.7,3987.5,1.75545]
[1733550312383,0.03546078,3987.9,3987.5,1.75545]
[1733550312681,0.03402036,3987.6,3987.5,1.75545]
[1733550312879,0.18558309,3987.8,3987.5,1.75545]
[1733550313046,0.03401032,3987.6,3987.5,1.75545]
[1733550313247,6.30366078,3987.9,3987.5,1.75545]
[1733550313753,0.0339608,3987.8,3987.5,1.75545]
[1733550315473,0.73261468,3987.8,3986.9,0.7759]
[1733550315643,0.73261468,3987.8,3987.2,1.7556]
[1733550315981,0.73261468,3987.8,3987.3,1.75556]
[1733550317186,0.0339608,3987.8,3987.7,2.56239]
[1733550317548,6.30366078,3987.9,3987.7,2.56239]
[1733550317885,6.30366078,3987.9,3987.8,1.75535]
[1733550318464,6.30366078,3987.9,3986.7,1.04683031]
[1733550318465,0.8059,3987.8,3986.7,1.04683031]
[1733550318751,0.8059,3987.0,3986.1,2.90066063]
[1733550318977,0.8059,3987.0,3986.1,0.807]
[1733550319143,0.8059,3987.0,3986.4,1.75595]
[1733550319345,0.99503138,3987.0,3986.1,0.807]
[1733550319697,0.99503138,3987.0,3985.3,3.64886381]
[1733550319698,0.86333392,3986.9,3985.3,3.64886381]
[1733550319849,0.03135424,3986.9,3985.9,1.75617]
[1733550320186,0.89449976,3986.8,3985.9,1.75617]
[1733550320343,1.08541381,3986.7,3985.6,1.75631]
[1733550320546,1.02197917,3986.6,3985.7,1.75626]
[1733550320769,2.15702625,3986.5,3985.8,2.35464108]
[1733550320971,0.03040226,3986.5,3986.0,1.75613]
[1733550321188,0.03040226,3986.5,3985.7,1.75626]
[1733550321391,0.03040226,3986.5,3984.8,1.75663]
[1733550321392,0.8059,3986.0,3984.8,1.75663]
[1733550321695,0.8059,3986.0,3984.5,0.807]
[1733550321696,1.04416432,3985.7,3985.2,1.75646]
[1733550321841,1.04416432,3985.8,3985.2,1.75646]
[1733550322041,1.04416432,3985.8,3984.6,1.75675]
[1733550322042,1.07408484,3985.6,3984.7,0.01271656]
[1733550322244,0.02995098,3985.7,3985.4,1.75639]
[1733550322446,1.04416432,3986.0,3985.7,1.75627]
[1733550322658,1.85006432,3986.5,3985.8,1.7562]
[1733550322881,0.02893421,3985.9,3985.8,1.7562]
[1733550323081,1.85006432,3986.5,3985.8,1.7562]
[1733550323309,1.85006432,3986.5,3985.5,1.75635]
[1733550323310,2.15256822,3986.4,3985.5,1.75635]
[1733550323463,0.40026325,3986.3,3985.3,1.75643]
[1733550323786,1.29151319,3986.4,3985.4,0.01271386]
[1733550323951,0.8059,3986.5,3985.6,1.75629]
[1733550324146,2.33535017,3986.6,3985.4,2.35464108]
[1733550324360,0.8059,3986.9,3986.0,1.75611]
[1733550324758,0.8059,3986.9,3985.9,0.807]
[1733550324759,0.8059,3986.9,3986.1,1.75608]
[1733550324956,0.8059,3986.9,3986.1,2.012388]
[1733550326397,0.0291177,3986.8,3985.9,0.807]
[1733550326608,0.0291177,3986.8,3985.9,2.56317]
[1733550327178,0.0291177,3986.8,3985.6,2.56331]
[1733550327481,0.0291177,3986.8,3985.7,1.76896711]
[1733550327792,0.0291177,3986.8,3985.7,1.75626]
[1733550328190,0.0291177,3986.8,3985.7,2.24805011]
[1733550328702,0.0291177,3986.8,3985.6,0.807]
[1733550328902,0.0291177,3986.8,3985.6,2.56331]
[1733550329318,0.8059,3986.7,3985.3,0.807]
[1733550329615,0.8059,3986.7,3985.6,1.75629]
[1733550329925,0.8059,3986.7,3985.7,1.75626]
[1733550330085,0.02916079,3986.6,3985.7,1.93315671]
[1733550330283,0.02916079,3986.6,3985.8,1.76891712]
[1733550330481,0.02916079,3986.6,3985.8,0.01270712]
[1733550330783,0.02916079,3986.6,3986.1,1.75608]
[1733550331093,0.02916079,3986.6,3985.8,1.75622]
[1733550331391,0.02916079,3986.6,3985.8,1.94953167]
[1733550332591,0.8059,3986.7,3985.8,1.94953167]
[1733550332836,0.02903981,3986.5,3985.8,1.94953167]
[1733550333006,0.8059,3986.7,3985.8,1.94953167]
[1733550333007,0.02907025,3986.6,3985.8,1.94953167]
[1733550333339,0.02908004,3986.5,3985.8,0.19331167]
[1733550333491,0.8059,3986.7,3985.7,0.17689671]
[1733550333824,0.02911049,3986.6,3985.7,0.17689671]
[1733550334420,2.12072122,3987.2,3986.0,1.75613]
[1733550334597,0.02911358,3986.5,3986.0,1.75613]
[1733550334794,3.84534563,3987.5,3985.8,1.3475043]
[1733550334795,5.71551001,3987.5,3986.3,1.75599]
[1733550334992,4.67464563,3987.5,3986.4,0.49081309]
[1733550335431,0.8293,3987.8,3986.7,1.75583]
[1733550336231,6.30366078,3987.9,3986.8,0.7848]
[1733550336539,0.86150596,3987.8,3986.8,0.7848]
[1733550336696,6.30366078,3987.9,3986.8,0.7848]
[1733550337034,6.30366078,3987.9,3986.8,1.093863]
[1733550337334,0.03002546,3987.8,3986.9,1.76842832]
[1733550337536,0.03002546,3987.8,3986.9,1.75574]
[1733550339733,0.03002546,3987.8,3986.8,1.093863]
[1733550339934,0.03002546,3987.8,3986.8,0.7848]
[1733550340107,0.06137226,3987.8,3986.8,0.7848]
[1733550340294,0.03002546,3987.8,3986.8,0.7848]
[1733550340499,1.69101661,3987.7,3986.5,1.3348]
[1733550340730,0.8293,3987.7,3986.5,1.3348]
[1733550340939,0.89083035,3987.6,3986.6,0.18256131]
[1733550341104,0.02918197,3987.6,3986.6,0.18256131]
[1733550341307,2.15376749,3987.5,3986.2,0.55]
[1733550341500,0.8614881,3987.4,3986.1,1.75607]
[1733550341700,0.02913451,3987.4,3986.1,1.75607]
[1733550341936,0.8293,3987.3,3986.0,0.7848]
[1733550342136,0.86152172,3987.2,3986.0,0.7848]
[1733550342296,2.15380389,3987.1,3986.1,0.48956011]
[1733550342642,0.02901278,3987.0,3986.1,0.48956011]
[1733550343015,1.87016438,3987.3,3986.1,0.48956011]
[1733550343216,3.22379998,3987.2,3986.1,0.48956011]
[1733550343424,0.86154478,3987.1,3986.1,0.48956011]
[1733550343609,0.02904321,3987.1,3986.2,0.30432194]
[1733550344101,0.02904321,3987.1,3986.0,0.7848]
[1733550344446,0.8293,3987.0,3985.6,1.7563]
[1733550344606,0.8293,3987.0,3985.7,1.75627]
[1733550344934,0.0287375,3986.9,3985.7,1.75627]
[1733550345912,0.86159434,3986.8,3985.7,1.75627]
[1733550346099,1.07072612,3986.9,3985.7,2.24584111]
[1733550346306,0.02867662,3986.7,3985.7,0.48957111]
[1733550346530,0.8293,3986.7,3985.7,0.48957111]
[1733550346728,0.02864618,3986.6,3985.7,0.48957111]
[1733550347309,0.02864618,3986.6,3985.6,0.55]
[1733550347508,0.02864618,3986.6,3985.6,2.30631]
[1733550347951,0.06000253,3986.6,3985.3,1.75644]
[1733550348154,0.06000253,3986.6,3985.4,0.55]
[1733550348460,0.8293,3986.4,3985.4,0.55]
[1733550348815,0.02848104,3986.3,3985.4,0.55]
[1733550349116,0.02848104,3986.3,3985.3,1.75644]
[1733550349312,0.02848104,3986.3,3985.3,0.254124]
[1733550349557,0.02848104,3986.3,3985.2,2.54129]
[1733550349715,0.86133517,3986.2,3985.2,2.54129]
[1733550349917,0.02848104,3986.3,3985.2,0.7848]
[1733550350256,1.87128862,3986.4,3985.4,1.7564]
[1733550350257,0.02845059,3986.2,3985.4,1.7564]
[1733550350652,0.8293,3986.4,3985.4,1.7564]
[1733550350823,0.02842014,3986.1,3985.4,1.7564]
[1733550351030,0.8293,3986.4,3985.4,2.24725516]
[1733550351388,0.02848104,3986.3,3985.2,2.55399048]
[1733550351688,0.02848104,3986.3,3985.2,2.54128]
[1733550353327,0.02848104,3986.3,3985.7,1.75627]
[1733550353658,0.02848104,3986.3,3985.7,0.80230399]
[1733550353858,0.02848104,3986.3,3985.8,0.562701]
[1733550354020,0.7795,3986.8,3986.0,0.55]